[Event "Titled Tuesday Blitz May 30 Early 2023"]
[White "Antonova, Nadezhda"]
[Black "Pandey Srishti"]
[WhiteFideId "14700182"]
[BlackFideId "35093290"]
[WhiteElo "1799"]
[BlackElo "2123"]
[Result "1-0"]
[Round "02"]
[TimeControl "180+2"]
[Date "2023.05.30"]
[WhiteClock "0:00:07"]
[BlackClock "0:00:39"]

1. Nf3 {[%clk 0:02:59]}  Nf6 {[%clk 0:02:59]} 2. b3 {[%clk 0:03:00]}  g6 {[%clk 0:02:59]} 3. Bb2 {[%clk 0:03:00]}  Bg7 {[%clk 0:03:00]} 4. g3 {[%clk 0:03:01]}  O-O {[%clk 0:03:01]} 5. Bg2 {[%clk 0:03:01]}  d6 {[%clk 0:03:01]} 6. d4 {[%clk 0:03:02]}  Nbd7 {[%clk 0:03:02]} 7. O-O {[%clk 0:03:02]}  e5 {[%clk 0:03:02]} 8. dxe5 {[%clk 0:03:02]}  Ng4 {[%clk 0:03:02]} 9. c4 {[%clk 0:03:02]}  Ngxe5 {[%clk 0:02:58]} 10. Qd2 {[%clk 0:03:03]}  a5 {[%clk 0:02:54]} 11. Nxe5 {[%clk 0:02:14]}  Nxe5 {[%clk 0:02:46]} 12. f4 {[%clk 0:02:13]}  Ng4 {[%clk 0:02:39]} 13. Bxg7 {[%clk 0:02:12]}  Kxg7 {[%clk 0:02:40]} 14. Nc3 {[%clk 0:02:09]}  f5 {[%clk 0:02:35]} 15. e4 {[%clk 0:02:06]}  Nf6 {[%clk 0:02:19]} 16. Rfe1 {[%clk 0:01:56]}  fxe4 {[%clk 0:02:16]} 17. Nxe4 {[%clk 0:01:56]}  Bf5 {[%clk 0:02:16]} 18. Nxf6 {[%clk 0:01:50]}  Qxf6 {[%clk 0:02:13]} 19. Bxb7 {[%clk 0:01:50]}  Rae8 {[%clk 0:02:11]} 20. Bc6 {[%clk 0:01:47]}  Rxe1+ {[%clk 0:02:09]} 21. Rxe1 {[%clk 0:01:47]}  Rf7 {[%clk 0:01:57]} 22. Qxa5 {[%clk 0:01:38]}  Qd4+ {[%clk 0:01:56]} 23. Kg2 {[%clk 0:01:36]}  Qb2+ {[%clk 0:01:53]} 24. Kg1 {[%clk 0:01:30]}  h5 {[%clk 0:01:45]} 25. Bd5 {[%clk 0:00:58]}  Rf8 {[%clk 0:01:39]} 26. Qxc7+ {[%clk 0:00:56]}  Kh6 {[%clk 0:01:39]} 27. Qe7 {[%clk 0:00:49]}  Rf6 {[%clk 0:01:27]} 28. Qe2 {[%clk 0:00:44]}  Qd4+ {[%clk 0:01:19]} 29. Qe3 {[%clk 0:00:44]}  Qb2 {[%clk 0:01:17]} 30. Qf2 {[%clk 0:00:30]}  Qc3 {[%clk 0:01:13]} 31. Qe3 {[%clk 0:00:16]}  Qb2 {[%clk 0:01:10]} 32. Qf2 {[%clk 0:00:15]}  Qc3 {[%clk 0:01:10]} 33. Rd1 {[%clk 0:00:15]}  Rf8 {[%clk 0:01:01]} 34. Qd2 {[%clk 0:00:13]}  Qf6 {[%clk 0:00:56]} 35. b4 {[%clk 0:00:12]}  Rb8 {[%clk 0:00:55]} 36. b5 {[%clk 0:00:09]}  h4 {[%clk 0:00:54]} 37. a4 {[%clk 0:00:09]}  h3 {[%clk 0:00:54]} 38. a5 {[%clk 0:00:07]}  Qe7 {[%clk 0:00:54]} 39. a6 {[%clk 0:00:07]}  Qa7+ {[%clk 0:00:54]} 40. Qf2 {[%clk 0:00:07]}  Qc7 {[%clk 0:00:54]} 41. a7 {[%clk 0:00:07]}  Rd8 {[%clk 0:00:49]} 42. a8=Q {[%clk 0:00:06]}  Rxa8 {[%clk 0:00:49]} 43. Bxa8 {[%clk 0:00:07]}  Qb8 {[%clk 0:00:39]} 44. Bd5 {[%clk 0:00:07]} 1-0


[Site "https://www.chess.com"]

[Event "Titled Tuesday Blitz May 30 Early 2023"]
[White "Zaitsev, Alexander"]
[Black "Kriti Mayur Patel"]
[WhiteFideId "4164490"]
[BlackFideId "35061780"]
[WhiteElo "2373"]
[BlackElo "1306"]
[Result "1-0"]
[Round "02"]
[TimeControl "180+2"]
[Date "2023.05.30"]
[WhiteClock "0:00:14"]
[BlackClock "0:00:44"]

1. e4 {[%clk 0:03:00]}  e5 {[%clk 0:02:59]} 2. Nc3 {[%clk 0:03:00]}  Nf6 {[%clk 0:02:59]} 3. Bc4 {[%clk 0:03:01]}  Nxe4 {[%clk 0:02:58]} 4. Qh5 {[%clk 0:03:01]}  Nd6 {[%clk 0:02:57]} 5. Qxe5+ {[%clk 0:03:01]}  Qe7 {[%clk 0:02:43]} 6. Qxe7+ {[%clk 0:03:01]}  Bxe7 {[%clk 0:02:44]} 7. Bb3 {[%clk 0:03:02]}  O-O {[%clk 0:02:43]} 8. Nf3 {[%clk 0:03:02]}  Nc6 {[%clk 0:02:43]} 9. d4 {[%clk 0:03:02]}  Nf5 {[%clk 0:02:42]} 10. d5 {[%clk 0:02:46]}  Ncd4 {[%clk 0:02:38]} 11. Nxd4 {[%clk 0:02:42]}  Nxd4 {[%clk 0:02:37]} 12. O-O {[%clk 0:02:15]}  d6 {[%clk 0:02:33]} 13. Re1 {[%clk 0:02:15]}  Bf6 {[%clk 0:02:31]} 14. Ne4 {[%clk 0:02:10]}  Bf5 {[%clk 0:02:16]} 15. Nxf6+ {[%clk 0:02:03]}  gxf6 {[%clk 0:02:17]} 16. c3 {[%clk 0:01:52]}  Nxb3 {[%clk 0:02:13]} 17. axb3 {[%clk 0:01:53]}  Bc2 {[%clk 0:02:10]} 18. b4 {[%clk 0:01:17]}  Bb3 {[%clk 0:02:08]} 19. Re7 {[%clk 0:00:53]}  Rfe8 {[%clk 0:01:49]} 20. Rxa7 {[%clk 0:00:49]}  Kg7 {[%clk 0:01:38]} 21. Rxa8 {[%clk 0:00:31]}  Rxe7 {[%clk 0:01:38]} 22. Be3 {[%clk 0:00:26]}  Bxd5 {[%clk 0:01:35]} 23. h3 {[%clk 0:00:21]}  b6 {[%clk 0:01:20]} 24. Ra7 {[%clk 0:00:20]}  Kf8 {[%clk 0:01:15]} 25. Kh2 {[%clk 0:00:20]}  Ke8 {[%clk 0:01:13]} 26. Kg3 {[%clk 0:00:17]}  Kd7 {[%clk 0:01:13]} 27. Bxb6 {[%clk 0:00:17]}  Kc6 {[%clk 0:01:10]} 28. Bd4 {[%clk 0:00:17]}  f5 {[%clk 0:01:07]} 29. Ra8 {[%clk 0:00:17]}  Re6 {[%clk 0:01:04]} 30. f3 {[%clk 0:00:14]}  Rg6+ {[%clk 0:01:04]} 31. Kf2 {[%clk 0:00:14]}  Kb5 {[%clk 0:01:03]} 32. Rh8 {[%clk 0:00:14]}  h6 {[%clk 0:01:02]} 33. Rh7 {[%clk 0:00:13]}  Kc4 {[%clk 0:00:57]} 34. h4 {[%clk 0:00:13]}  Kb3 {[%clk 0:00:57]} 35. h5 {[%clk 0:00:13]}  Re6 {[%clk 0:00:55]} 36. Bg7 {[%clk 0:00:12]}  Kxb2 {[%clk 0:00:55]} 37. c4+ {[%clk 0:00:12]}  Kb3 {[%clk 0:00:53]} 38. cxd5 {[%clk 0:00:13]}  Re8 {[%clk 0:00:52]} 39. Rxh6 {[%clk 0:00:12]}  Kxb4 {[%clk 0:00:52]} 40. Rh8 {[%clk 0:00:13]}  Re7 {[%clk 0:00:48]} 41. Bf6 {[%clk 0:00:12]}  Rd7 {[%clk 0:00:47]} 42. h6 {[%clk 0:00:12]}  Kc5 {[%clk 0:00:44]} 43. Rd8 {[%clk 0:00:12]}  Rxd8 {[%clk 0:00:42]} 44. Bxd8 {[%clk 0:00:13]}  Kxd5 {[%clk 0:00:43]} 45. h7 {[%clk 0:00:14]}  c5 {[%clk 0:00:43]} 46. h8=Q {[%clk 0:00:15]}  c4 {[%clk 0:00:44]} 47. Bc7 {[%clk 0:00:15]}  Kc5 {[%clk 0:00:44]} 48. Qf8 {[%clk 0:00:14]}  f4 {[%clk 0:00:45]} 49. Qxd6+ {[%clk 0:00:15]}  Kb5 {[%clk 0:00:44]} 50. Qd4 {[%clk 0:00:13]}  f5 {[%clk 0:00:44]} 51. Bd6 {[%clk 0:00:14]}  Ka4 {[%clk 0:00:43]} 52. Qxc4+ {[%clk 0:00:14]}  Ka5 {[%clk 0:00:44]} 53. Qb3 {[%clk 0:00:14]}  Ka6 {[%clk 0:00:44]} 54. Bc5 {[%clk 0:00:13]}  Ka5 {[%clk 0:00:44]} 55. Qb4+ {[%clk 0:00:14]}  Ka6 {[%clk 0:00:44]} 56. Qb6# {[%clk 0:00:14]} 1-0


[Site "https://www.chess.com"]

[Event "Titled Tuesday Blitz May 30 Early 2023"]
[White "Fan_Of_Chucky"]
[Black "dDobravcan"]
[WhiteElo "2441"]
[BlackElo "2116"]
[Result "1-0"]
[Round "02"]
[TimeControl "180+2"]
[Date "2023.05.30"]
[WhiteClock "0:00:16"]
[BlackClock "0:00:00"]

1. d4 {[%clk 0:02:30]}  d6 {[%clk 0:02:58]} 2. c4 {[%clk 0:02:31]}  e5 {[%clk 0:02:57]} 3. dxe5 {[%clk 0:02:31]}  dxe5 {[%clk 0:02:58]} 4. Qxd8+ {[%clk 0:02:31]}  Kxd8 {[%clk 0:02:58]} 5. Nc3 {[%clk 0:02:32]}  Be6 {[%clk 0:02:55]} 6. b3 {[%clk 0:02:31]}  c6 {[%clk 0:02:49]} 7. Bb2 {[%clk 0:02:29]}  Kc7 {[%clk 0:02:48]} 8. g3 {[%clk 0:02:29]}  Nd7 {[%clk 0:02:47]} 9. O-O-O {[%clk 0:02:29]}  f6 {[%clk 0:02:45]} 10. Bg2 {[%clk 0:02:25]}  Nh6 {[%clk 0:02:42]} 11. h3 {[%clk 0:02:21]}  Nf7 {[%clk 0:02:36]} 12. f4 {[%clk 0:02:20]}  exf4 {[%clk 0:02:16]} 13. gxf4 {[%clk 0:02:21]}  Bd6 {[%clk 0:02:16]} 14. e3 {[%clk 0:02:19]}  Rhe8 {[%clk 0:02:08]} 15. Nf3 {[%clk 0:02:15]}  Bc5 {[%clk 0:01:25]} 16. Nd4 {[%clk 0:02:10]}  Nd6 {[%clk 0:01:15]} 17. Na4 {[%clk 0:01:51]}  Rad8 {[%clk 0:01:04]} 18. e4 {[%clk 0:01:22]}  Bg8 {[%clk 0:00:59]} 19. Rhe1 {[%clk 0:01:19]}  a6 {[%clk 0:00:38]} 20. e5 {[%clk 0:00:55]}  fxe5 {[%clk 0:00:13]} 21. fxe5 {[%clk 0:00:56]}  Nc8 {[%clk 0:00:03]} 22. Nxc6 {[%clk 0:00:16]}  bxc6 {[%clk 0:00:00]} 23. Rxd7+ {[%clk 0:00:16]} 1-0


[Site "https://www.chess.com"]

[Event "Titled Tuesday Blitz May 30 Early 2023"]
[White "Lonoff, Marc"]
[Black "Fiedorek, Michal"]
[WhiteFideId "2001349"]
[BlackFideId "1199528"]
[WhiteElo "2113"]
[BlackElo "2135"]
[Result "1-0"]
[Round "02"]
[TimeControl "180+2"]
[Date "2023.05.30"]
[WhiteClock "0:00:51"]
[BlackClock "0:00:00"]

1. c4 {[%clk 0:02:59]}  e5 {[%clk 0:02:57]} 2. Nc3 {[%clk 0:02:58]}  Nf6 {[%clk 0:02:57]} 3. g3 {[%clk 0:02:58]}  d5 {[%clk 0:02:57]} 4. cxd5 {[%clk 0:02:58]}  Nxd5 {[%clk 0:02:57]} 5. Bg2 {[%clk 0:02:58]}  Nb6 {[%clk 0:02:58]} 6. e3 {[%clk 0:02:58]}  Be7 {[%clk 0:02:53]} 7. Nge2 {[%clk 0:02:58]}  h5 {[%clk 0:02:52]} 8. f4 {[%clk 0:02:50]}  Nc6 {[%clk 0:02:38]} 9. fxe5 {[%clk 0:02:43]}  Nxe5 {[%clk 0:02:34]} 10. d4 {[%clk 0:02:43]}  Ng6 {[%clk 0:02:01]} 11. Nf4 {[%clk 0:02:33]}  Nxf4 {[%clk 0:01:55]} 12. gxf4 {[%clk 0:02:33]}  Bh4+ {[%clk 0:01:48]} 13. Kf1 {[%clk 0:02:31]}  Bg4 {[%clk 0:01:33]} 14. Qd3 {[%clk 0:02:27]}  Qd7 {[%clk 0:01:08]} 15. Bxb7 {[%clk 0:02:09]}  Bh3+ {[%clk 0:00:55]} 16. Ke2 {[%clk 0:01:59]}  Rb8 {[%clk 0:00:48]} 17. Qe4+ {[%clk 0:01:55]}  Kf8 {[%clk 0:00:26]} 18. Bc6 {[%clk 0:01:48]}  Qg4+ {[%clk 0:00:19]} 19. Qf3 {[%clk 0:01:48]}  Qe6 {[%clk 0:00:17]} 20. Rg1 {[%clk 0:01:23]}  Bg4 {[%clk 0:00:14]} 21. Rxg4 {[%clk 0:01:23]}  hxg4 {[%clk 0:00:14]} 22. Qg2 {[%clk 0:01:20]}  Qc4+ {[%clk 0:00:13]} 23. Kd2 {[%clk 0:01:19]}  Bf6 {[%clk 0:00:05]} 24. b3 {[%clk 0:01:14]}  Qb4 {[%clk 0:00:04]} 25. a4 {[%clk 0:01:11]}  Kg8 {[%clk 0:00:03]} 26. Ba3 {[%clk 0:01:04]}  Qa5 {[%clk 0:00:03]} 27. b4 {[%clk 0:01:00]}  Qh5 {[%clk 0:00:02]} 28. Rh1 {[%clk 0:00:55]}  Nc4+ {[%clk 0:00:02]} 29. Kd3 {[%clk 0:00:54]}  Nxa3 {[%clk 0:00:03]} 30. b5 {[%clk 0:00:54]}  Qh3 {[%clk 0:00:02]} 31. Qxh3 {[%clk 0:00:52]}  Rh4 {[%clk 0:00:02]} 32. Qg3 {[%clk 0:00:51]}  Rh7 {[%clk 0:00:00]} 33. Qxg4 {[%clk 0:00:51]} 1-0


[Site "https://www.chess.com"]

[Event "Titled Tuesday Blitz May 30 Early 2023"]
[White "Abdilkhair, Abilmansur"]
[Black "Steenbekkers, Franck"]
[WhiteFideId "13716417"]
[BlackFideId "1004220"]
[WhiteElo "2215"]
[BlackElo "2111"]
[Result "1-0"]
[Round "02"]
[TimeControl "180+2"]
[Date "2023.05.30"]
[WhiteClock "0:00:04"]
[BlackClock "0:00:00"]

1. d4 {[%clk 0:02:58]}  Nf6 {[%clk 0:02:38]} 2. Nc3 {[%clk 0:02:58]}  d5 {[%clk 0:02:37]} 3. Bf4 {[%clk 0:02:58]}  a6 {[%clk 0:02:36]} 4. f3 {[%clk 0:02:57]}  e6 {[%clk 0:02:35]} 5. e4 {[%clk 0:02:57]}  c5 {[%clk 0:02:34]} 6. Nge2 {[%clk 0:02:54]}  cxd4 {[%clk 0:02:30]} 7. Qxd4 {[%clk 0:02:49]}  Nc6 {[%clk 0:02:27]} 8. Qd2 {[%clk 0:02:42]}  Bb4 {[%clk 0:02:24]} 9. a3 {[%clk 0:02:40]}  Ba5 {[%clk 0:02:20]} 10. b4 {[%clk 0:02:36]}  Bb6 {[%clk 0:02:20]} 11. exd5 {[%clk 0:02:30]}  exd5 {[%clk 0:02:18]} 12. Na4 {[%clk 0:02:29]}  Ba7 {[%clk 0:02:16]} 13. Nc5 {[%clk 0:02:06]}  O-O {[%clk 0:02:07]} 14. Nd4 {[%clk 0:02:06]}  Re8+ {[%clk 0:02:04]} 15. Be2 {[%clk 0:02:05]}  Qe7 {[%clk 0:01:48]} 16. Nxc6 {[%clk 0:01:43]}  bxc6 {[%clk 0:01:45]} 17. O-O {[%clk 0:01:44]}  Bxc5+ {[%clk 0:01:42]} 18. bxc5 {[%clk 0:01:43]}  Qxe2 {[%clk 0:01:41]} 19. Qc3 {[%clk 0:01:37]}  Bf5 {[%clk 0:01:36]} 20. Bg5 {[%clk 0:01:35]}  Nd7 {[%clk 0:01:19]} 21. Rf2 {[%clk 0:01:28]}  Qc4 {[%clk 0:01:17]} 22. Qa5 {[%clk 0:01:24]}  Qxc5 {[%clk 0:01:15]} 23. Qc7 {[%clk 0:01:22]}  h6 {[%clk 0:01:10]} 24. Bh4 {[%clk 0:01:18]}  Re2 {[%clk 0:01:08]} 25. Qf4 {[%clk 0:00:50]}  Rae8 {[%clk 0:01:00]} 26. g4 {[%clk 0:00:40]}  Bxc2 {[%clk 0:00:57]} 27. Kg2 {[%clk 0:00:33]}  Qc4 {[%clk 0:00:51]} 28. Qd6 {[%clk 0:00:26]}  Ne5 {[%clk 0:00:47]} 29. Rf1 {[%clk 0:00:15]}  Nd3 {[%clk 0:00:44]} 30. Rxe2 {[%clk 0:00:14]}  Rxe2+ {[%clk 0:00:43]} 31. Kh3 {[%clk 0:00:15]}  Qf4 {[%clk 0:00:38]} 32. Qd8+ {[%clk 0:00:12]}  Kh7 {[%clk 0:00:37]} 33. Bg3 {[%clk 0:00:13]}  Qf6 {[%clk 0:00:32]} 34. Qb8 {[%clk 0:00:10]}  d4 {[%clk 0:00:23]} 35. f4 {[%clk 0:00:10]}  c5 {[%clk 0:00:19]} 36. f5 {[%clk 0:00:10]}  c4 {[%clk 0:00:17]} 37. Qc7 {[%clk 0:00:05]}  h5 {[%clk 0:00:15]} 38. Qxc4 {[%clk 0:00:03]}  hxg4+ {[%clk 0:00:13]} 39. Kxg4 {[%clk 0:00:04]}  Ne5+ {[%clk 0:00:11]} 40. Kh3 {[%clk 0:00:03]}  Qg5 {[%clk 0:00:10]} 41. Qxe2 {[%clk 0:00:02]}  d3 {[%clk 0:00:08]} 42. Qf2 {[%clk 0:00:02]}  d2 {[%clk 0:00:08]} 43. Qf4 {[%clk 0:00:02]}  Qh5+ {[%clk 0:00:06]} 44. Kg2 {[%clk 0:00:02]}  d1=Q {[%clk 0:00:05]} 45. Rxd1 {[%clk 0:00:03]}  Bxd1 {[%clk 0:00:05]} 46. Qxe5 {[%clk 0:00:03]}  Qe2+ {[%clk 0:00:04]} 47. Qxe2 {[%clk 0:00:03]}  Bxe2 {[%clk 0:00:05]} 48. Bf2 {[%clk 0:00:04]}  Kh6 {[%clk 0:00:04]} 49. Kg3 {[%clk 0:00:05]}  Kg5 {[%clk 0:00:04]} 50. Bd4 {[%clk 0:00:05]}  f6 {[%clk 0:00:03]} 51. Bc5 {[%clk 0:00:02]}  Kxf5 {[%clk 0:00:03]} 52. Bf8 {[%clk 0:00:03]}  g5 {[%clk 0:00:02]} 53. Kf2 {[%clk 0:00:04]}  Bb5 {[%clk 0:00:02]} 54. Ke3 {[%clk 0:00:05]}  Ke5 {[%clk 0:00:00]} 55. Bg7 {[%clk 0:00:04]} 1-0


[Site "https://www.chess.com"]

[Event "Titled Tuesday Blitz May 30 Early 2023"]
[White "Jimenez Jimenez, Leandro"]
[Black "Flis, Pawel"]
[WhiteFideId "6415253"]
[BlackFideId "1112864"]
[WhiteElo "2296"]
[BlackElo "1822"]
[Result "0-1"]
[Round "02"]
[TimeControl "180+2"]
[Date "2023.05.30"]
[WhiteClock "0:00:00"]
[BlackClock "0:00:54"]

1. d4 {[%clk 0:03:00]}  c5 {[%clk 0:02:55]} 2. dxc5 {[%clk 0:02:55]}  e6 {[%clk 0:02:54]} 3. c4 {[%clk 0:02:51]}  Bxc5 {[%clk 0:02:53]} 4. Nc3 {[%clk 0:02:51]}  Nf6 {[%clk 0:02:52]} 5. Nf3 {[%clk 0:02:48]}  O-O {[%clk 0:02:51]} 6. e3 {[%clk 0:02:47]}  d5 {[%clk 0:02:50]} 7. cxd5 {[%clk 0:02:46]}  exd5 {[%clk 0:02:49]} 8. Be2 {[%clk 0:02:45]}  Nc6 {[%clk 0:02:49]} 9. O-O {[%clk 0:02:45]}  Bf5 {[%clk 0:02:49]} 10. b3 {[%clk 0:02:35]}  d4 {[%clk 0:02:35]} 11. Na4 {[%clk 0:02:33]}  Be7 {[%clk 0:02:11]} 12. Nxd4 {[%clk 0:02:21]}  Nxd4 {[%clk 0:02:09]} 13. exd4 {[%clk 0:02:22]}  Nd5 {[%clk 0:02:02]} 14. Bf3 {[%clk 0:01:23]}  Rc8 {[%clk 0:01:54]} 15. Bd2 {[%clk 0:01:17]}  Bf6 {[%clk 0:01:49]} 16. Be3 {[%clk 0:01:10]}  b5 {[%clk 0:01:42]} 17. Bxd5 {[%clk 0:01:05]}  Qxd5 {[%clk 0:01:36]} 18. Nc5 {[%clk 0:01:05]}  Rfd8 {[%clk 0:01:26]} 19. Qh5 {[%clk 0:00:25]}  g6 {[%clk 0:01:10]} 20. Qh6 {[%clk 0:00:22]}  Bxd4 {[%clk 0:01:10]} 21. Bxd4 {[%clk 0:00:20]}  Qxd4 {[%clk 0:01:10]} 22. b4 {[%clk 0:00:12]}  Qxb4 {[%clk 0:01:05]} 23. Nb3 {[%clk 0:00:12]}  a5 {[%clk 0:01:00]} 24. Qe3 {[%clk 0:00:03]}  a4 {[%clk 0:00:56]} 25. Nd2 {[%clk 0:00:00]}  Qxd2 {[%clk 0:00:54]} 0-1


[Site "https://www.chess.com"]

[Event "Titled Tuesday Blitz May 30 Early 2023"]
[White "Grave, Jacob Templen"]
[Black "Blackwhite017"]
[WhiteFideId "1542656"]
[WhiteElo "2189"]
[BlackElo "2096"]
[Result "1-0"]
[Round "02"]
[TimeControl "180+2"]
[Date "2023.05.30"]
[WhiteClock "0:00:01"]
[BlackClock "0:00:00"]

1. e4 {[%clk 0:03:00]}  c5 {[%clk 0:03:00]} 2. c3 {[%clk 0:02:58]}  d5 {[%clk 0:02:58]} 3. exd5 {[%clk 0:02:58]}  Qxd5 {[%clk 0:02:59]} 4. d4 {[%clk 0:02:58]}  Nf6 {[%clk 0:02:56]} 5. Nf3 {[%clk 0:02:56]}  Bg4 {[%clk 0:02:56]} 6. Be2 {[%clk 0:02:54]}  Nc6 {[%clk 0:02:55]} 7. Be3 {[%clk 0:02:54]}  cxd4 {[%clk 0:02:55]} 8. cxd4 {[%clk 0:02:55]}  e6 {[%clk 0:02:56]} 9. Nc3 {[%clk 0:02:49]}  Bb4 {[%clk 0:02:55]} 10. O-O {[%clk 0:02:48]}  Bxc3 {[%clk 0:02:53]} 11. bxc3 {[%clk 0:02:49]}  O-O {[%clk 0:02:51]} 12. h3 {[%clk 0:02:44]}  Bh5 {[%clk 0:02:45]} 13. Rb1 {[%clk 0:02:36]}  b6 {[%clk 0:02:38]} 14. Qd2 {[%clk 0:02:29]}  Ne4 {[%clk 0:02:15]} 15. Qc2 {[%clk 0:02:09]}  Bg6 {[%clk 0:01:50]} 16. Bd3 {[%clk 0:02:07]}  Nd6 {[%clk 0:01:17]} 17. Bxg6 {[%clk 0:01:53]}  hxg6 {[%clk 0:01:17]} 18. Qb3 {[%clk 0:01:39]}  Na5 {[%clk 0:01:06]} 19. Qxd5 {[%clk 0:01:26]}  exd5 {[%clk 0:01:07]} 20. Bf4 {[%clk 0:01:14]}  Ne4 {[%clk 0:00:54]} 21. Rfc1 {[%clk 0:00:54]}  Rac8 {[%clk 0:00:48]} 22. Bd2 {[%clk 0:00:51]}  Nc4 {[%clk 0:00:26]} 23. Be1 {[%clk 0:00:51]}  f6 {[%clk 0:00:18]} 24. Rb5 {[%clk 0:00:49]}  Rfd8 {[%clk 0:00:18]} 25. Kf1 {[%clk 0:00:39]}  Kf7 {[%clk 0:00:18]} 26. Ke2 {[%clk 0:00:38]}  Ke6 {[%clk 0:00:18]} 27. Kd3 {[%clk 0:00:30]}  Ncd6 {[%clk 0:00:14]} 28. Rb3 {[%clk 0:00:29]}  Rc7 {[%clk 0:00:09]} 29. Nd2 {[%clk 0:00:27]}  Rdc8 {[%clk 0:00:09]} 30. f3 {[%clk 0:00:24]}  Nxd2 {[%clk 0:00:08]} 31. Bxd2 {[%clk 0:00:25]}  Rc4 {[%clk 0:00:09]} 32. Re1+ {[%clk 0:00:23]}  Kf7 {[%clk 0:00:08]} 33. Bf4 {[%clk 0:00:21]}  Nb7 {[%clk 0:00:07]} 34. Bd2 {[%clk 0:00:16]}  Re8 {[%clk 0:00:07]} 35. Rxe8 {[%clk 0:00:14]}  Kxe8 {[%clk 0:00:08]} 36. Rb5 {[%clk 0:00:14]}  Ra4 {[%clk 0:00:03]} 37. Rb2 {[%clk 0:00:08]}  Na5 {[%clk 0:00:02]} 38. Be1 {[%clk 0:00:07]}  Nc4 {[%clk 0:00:01]} 39. Re2+ {[%clk 0:00:07]}  Kf7 {[%clk 0:00:02]} 40. g4 {[%clk 0:00:06]}  Ra3 {[%clk 0:00:02]} 41. Bg3 {[%clk 0:00:04]}  b5 {[%clk 0:00:02]} 42. Be1 {[%clk 0:00:01]}  b4 {[%clk 0:00:02]} 43. Rc2 {[%clk 0:00:01]}  b3 {[%clk 0:00:02]} 44. axb3 {[%clk 0:00:01]}  Rxb3 {[%clk 0:00:03]} 45. Ra2 {[%clk 0:00:01]}  Nb2+ {[%clk 0:00:00]} 46. Kc2 {[%clk 0:00:01]} 1-0


[Site "https://www.chess.com"]

[Event "Titled Tuesday Blitz May 30 Early 2023"]
[White "Vivas Zamora, Fabian Ernesto"]
[Black "Maluco_do_Natal_00"]
[WhiteFideId "3902480"]
[WhiteElo "2244"]
[BlackElo "2028"]
[Result "1-0"]
[Round "02"]
[TimeControl "180+2"]
[Date "2023.05.30"]
[WhiteClock "0:00:06"]
[BlackClock "0:00:01"]

1. e4 {[%clk 0:03:00]}  c5 {[%clk 0:02:59]} 2. Nf3 {[%clk 0:03:00]}  Nc6 {[%clk 0:02:59]} 3. d4 {[%clk 0:02:58]}  cxd4 {[%clk 0:03:00]} 4. Nxd4 {[%clk 0:02:59]}  Nf6 {[%clk 0:03:00]} 5. Nc3 {[%clk 0:03:00]}  e5 {[%clk 0:03:00]} 6. Ndb5 {[%clk 0:02:59]}  d6 {[%clk 0:03:00]} 7. Bg5 {[%clk 0:02:56]}  a6 {[%clk 0:03:00]} 8. Na3 {[%clk 0:02:56]}  b5 {[%clk 0:03:00]} 9. Bxf6 {[%clk 0:02:56]}  gxf6 {[%clk 0:02:57]} 10. Nd5 {[%clk 0:02:57]}  Bg7 {[%clk 0:02:57]} 11. g3 {[%clk 0:02:58]}  Be6 {[%clk 0:02:35]} 12. Bg2 {[%clk 0:02:53]}  Ne7 {[%clk 0:02:35]} 13. Nxe7 {[%clk 0:02:34]}  Qxe7 {[%clk 0:02:31]} 14. c3 {[%clk 0:02:26]}  Rd8 {[%clk 0:02:18]} 15. Nc2 {[%clk 0:02:24]}  f5 {[%clk 0:02:18]} 16. Nb4 {[%clk 0:02:02]}  Qb7 {[%clk 0:01:47]} 17. Qd3 {[%clk 0:01:19]}  a5 {[%clk 0:01:21]} 18. Nd5 {[%clk 0:01:17]}  Bxd5 {[%clk 0:01:18]} 19. Qxd5 {[%clk 0:01:06]}  Qxd5 {[%clk 0:01:17]} 20. exd5 {[%clk 0:01:07]}  Rc8 {[%clk 0:00:50]} 21. Bh3 {[%clk 0:01:00]}  Rc5 {[%clk 0:00:45]} 22. Rd1 {[%clk 0:00:42]}  f4 {[%clk 0:00:44]} 23. gxf4 {[%clk 0:00:36]}  exf4 {[%clk 0:00:44]} 24. Rg1 {[%clk 0:00:31]}  Be5 {[%clk 0:00:40]} 25. Rd3 {[%clk 0:00:29]}  Ke7 {[%clk 0:00:36]} 26. Kd2 {[%clk 0:00:28]}  Rb8 {[%clk 0:00:29]} 27. Bf5 {[%clk 0:00:27]}  h6 {[%clk 0:00:24]} 28. b3 {[%clk 0:00:25]}  a4 {[%clk 0:00:20]} 29. Rb1 {[%clk 0:00:21]}  axb3 {[%clk 0:00:17]} 30. axb3 {[%clk 0:00:21]}  b4 {[%clk 0:00:16]} 31. c4 {[%clk 0:00:17]}  Ra5 {[%clk 0:00:16]} 32. Ke2 {[%clk 0:00:16]}  Bc3 {[%clk 0:00:13]} 33. Kf3 {[%clk 0:00:15]}  Be5 {[%clk 0:00:13]} 34. Rd2 {[%clk 0:00:15]}  Kf6 {[%clk 0:00:13]} 35. Bd7 {[%clk 0:00:11]}  Ra3 {[%clk 0:00:12]} 36. Ba4 {[%clk 0:00:11]}  Ra8 {[%clk 0:00:12]} 37. Ke4 {[%clk 0:00:11]}  Rg8 {[%clk 0:00:11]} 38. f3 {[%clk 0:00:11]}  Rg5 {[%clk 0:00:10]} 39. Rbb2 {[%clk 0:00:10]}  Bxb2 {[%clk 0:00:09]} 40. Rxb2 {[%clk 0:00:09]}  Re5+ {[%clk 0:00:09]} 41. Kxf4 {[%clk 0:00:10]}  Ra1 {[%clk 0:00:09]} 42. c5 {[%clk 0:00:10]}  dxc5 {[%clk 0:00:08]} 43. Rd2 {[%clk 0:00:06]}  Rf1 {[%clk 0:00:06]} 44. d6 {[%clk 0:00:06]}  Re6 {[%clk 0:00:01]} 45. d7 {[%clk 0:00:06]}  Ke7 {[%clk 0:00:01]} 46. d8=Q# {[%clk 0:00:06]} 1-0


[Site "https://www.chess.com"]

[Event "Titled Tuesday Blitz May 30 Early 2023"]
[White "Lohani, Sujana"]
[Black "Srebrnic, Marko"]
[WhiteFideId "12311987"]
[BlackFideId "14603616"]
[WhiteElo "1718"]
[BlackElo "2341"]
[Result "0-1"]
[Round "02"]
[TimeControl "180+2"]
[Date "2023.05.30"]
[WhiteClock "0:00:00"]
[BlackClock "0:00:43"]

1. d4 {[%clk 0:03:00]}  Nf6 {[%clk 0:02:59]} 2. Nf3 {[%clk 0:02:37]}  d6 {[%clk 0:02:51]} 3. g3 {[%clk 0:02:33]}  b5 {[%clk 0:02:45]} 4. Bg2 {[%clk 0:02:33]}  Bb7 {[%clk 0:02:45]} 5. O-O {[%clk 0:02:32]}  h6 {[%clk 0:02:41]} 6. a4 {[%clk 0:02:29]}  b4 {[%clk 0:02:39]} 7. c4 {[%clk 0:02:27]}  g5 {[%clk 0:02:36]} 8. a5 {[%clk 0:02:23]}  a6 {[%clk 0:02:30]} 9. Qa4+ {[%clk 0:02:22]}  Bc6 {[%clk 0:02:22]} 10. Qxb4 {[%clk 0:02:21]}  e6 {[%clk 0:02:14]} 11. Nc3 {[%clk 0:02:11]}  Be7 {[%clk 0:02:01]} 12. Rd1 {[%clk 0:01:59]}  O-O {[%clk 0:01:57]} 13. d5 {[%clk 0:01:51]}  exd5 {[%clk 0:01:57]} 14. cxd5 {[%clk 0:01:50]}  Bd7 {[%clk 0:01:56]} 15. Qb7 {[%clk 0:01:23]}  c5 {[%clk 0:01:46]} 16. Qxa8 {[%clk 0:01:10]}  Qc7 {[%clk 0:01:46]} 17. Ne5 {[%clk 0:00:36]}  dxe5 {[%clk 0:01:27]} 18. d6 {[%clk 0:00:35]}  Bxd6 {[%clk 0:01:27]} 19. Qf3 {[%clk 0:00:26]}  Kg7 {[%clk 0:01:22]} 20. Ne4 {[%clk 0:00:22]}  Nxe4 {[%clk 0:01:20]} 21. Qxe4 {[%clk 0:00:20]}  Bc6 {[%clk 0:01:19]} 22. Qf5 {[%clk 0:00:17]}  Bxg2 {[%clk 0:01:13]} 23. Kxg2 {[%clk 0:00:17]}  Qe7 {[%clk 0:01:13]} 24. h4 {[%clk 0:00:16]}  f6 {[%clk 0:01:09]} 25. Qd3 {[%clk 0:00:14]}  Bc7 {[%clk 0:01:08]} 26. hxg5 {[%clk 0:00:13]}  hxg5 {[%clk 0:01:08]} 27. Rh1 {[%clk 0:00:11]}  e4 {[%clk 0:01:08]} 28. Qe3 {[%clk 0:00:07]}  Nc6 {[%clk 0:01:08]} 29. Bd2 {[%clk 0:00:07]}  Nd4 {[%clk 0:01:01]} 30. Bc3 {[%clk 0:00:06]}  Rd8 {[%clk 0:00:57]} 31. Rh2 {[%clk 0:00:05]}  Kg6 {[%clk 0:00:52]} 32. Rah1 {[%clk 0:00:05]}  Nf5 {[%clk 0:00:53]} 33. Qc1 {[%clk 0:00:03]}  e3 {[%clk 0:00:51]} 34. f3 {[%clk 0:00:02]}  Bxg3 {[%clk 0:00:50]} 35. Rh7 {[%clk 0:00:00]}  Qxh7 {[%clk 0:00:43]} 0-1


[Site "https://www.chess.com"]